bitfinex-derivatives/quotes_ETHF0:USTF0_20250112
["timestamp","ask_amount","ask_price","bid_price","bid_amount"]
[1736696567229,0.23352945,3285.4,3285.0,1.4267]
[1736696567431,0.21317,3285.1,3285.0,1.63988]
[1736696567729,0.21317,3285.1,3285.0,1.4267]
[1736696568228,0.21317,3285.1,3285.0,0.9477]
[1736696568529,0.21318,3285.0,3284.9,46.33441779]
[1736696568733,0.21318,3285.0,3284.9,46.12123779]
[1736696569125,0.21318,3285.0,3284.9,46.33442779]
[1736696570434,0.21318,3285.0,3284.9,46.12123779]
[1736696570730,0.21318,3285.0,3284.9,46.33442779]
[1736696571819,0.21318,3285.0,3284.9,46.12123779]
[1736696572020,0.21318,3285.0,3284.9,44.0078]
[1736696572425,3.6986,3285.3,3284.9,46.12123779]
[1736696572626,4.98244944,3285.4,3285.2,2.11343779]
[1736696572827,5.19560944,3285.4,3285.3,1.70046]
[1736696573130,0.23352945,3285.4,3285.3,1.70046]
[1736696575425,4.74891999,3285.5,3285.3,1.4873]
[1736696575735,4.74891999,3285.5,3285.4,2.32659779]
[1736696576328,4.74891999,3285.5,3285.4,5.53439779]
[1736696576525,4.74891999,3285.7,3285.6,0.21314]
[1736696578139,4.74891999,3285.8,3285.7,0.21314]
[1736696578337,4.74891999,3285.8,3285.7,2.32657779]
[1736696579536,4.96203999,3285.9,3285.7,2.32657779]
[1736696579738,4.74891999,3285.9,3285.8,0.21313]
[1736696579946,4.74891999,3285.9,3285.8,0.72273]
[1736696580832,5.96566162,3286.1,3285.9,0.21312]
[1736696580833,4.96202999,3286.1,3285.9,0.21312]
[1736696581537,0.21312,3286.0,3285.7,2.11343779]
[1736696581737,4.74891999,3286.1,3285.7,2.11343779]
[1736696582043,4.74891999,3286.0,3285.7,2.11343779]
[1736696582332,0.21313,3285.9,3285.7,2.32656779]
[1736696582532,4.74891999,3286.0,3285.7,2.11343779]
[1736696582737,4.96203999,3286.0,3285.8,0.21313]
[1736696583237,0.21312,3286.0,3285.8,0.21313]
[1736696583633,0.21313,3285.9,3285.7,2.32656779]
[1736696584142,0.4755,3285.8,3285.7,2.32656779]
[1736696587243,4.74891999,3286.1,3285.7,2.11343779]
[1736696587442,0.21312,3286.0,3285.8,0.21313]
[1736696587636,0.21312,3285.9,3285.7,2.32656779]
[1736696587837,0.21312,3286.0,3285.8,0.21313]
[1736696588141,5.24871999,3286.1,3285.8,0.21313]
[1736696588342,0.21312,3286.0,3285.8,0.21313]
[1736696590638,0.21312,3285.9,3285.8,0.21313]
[1736696591346,0.21312,3285.9,3285.8,1.21438646]
[1736696592047,0.4406946,3285.9,3285.8,1.21438646]
[1736696592738,0.4406946,3285.9,3285.8,1.00125646]
[1736696602547,0.21315,3285.5,3285.4,0.4916]
[1736696602750,0.21315,3285.5,3285.4,1.49285646]
[1736696602949,0.21317,3285.2,3285.0,7.10363496]
[1736696603550,0.21317,3285.1,3285.0,1.00125646]
[1736696603757,0.71147,3285.1,3285.0,1.00125646]
[1736696603955,0.4983,3285.1,3284.9,4.73890499]
[1736696604256,0.21318,3285.0,3284.9,5.74016145]
[1736696604947,0.21318,3285.0,3284.9,1.00125646]
[1736696605355,5.24721999,3285.1,3284.7,45.43999569]
[1736696605557,0.21319,3284.8,3284.7,45.43999569]
[1736696605754,0.21319,3284.8,3284.7,44.48579569]
[1736696605957,0.21322,3284.4,3284.3,2.11652476]
[1736696606365,0.21322,3284.5,3284.3,43.12974476]
[1736696606753,0.21322,3284.4,3284.3,42.91652476]
[1736696606953,0.21322,3284.4,3284.3,2.11652476]
[1736696607553,0.4952,3284.6,3284.2,41.7998]
[1736696607754,0.21323,3284.3,3284.2,41.7998]
[1736696614662,0.22836084,3284.8,3284.2,41.7998]
[1736696614863,0.22836084,3284.8,3284.7,2.32972476]
[1736696615063,3.2078,3284.9,3284.7,2.32972476]
[1736696615064,5.96566162,3285.2,3284.9,0.21319]
[1736696615269,5.96566162,3285.2,3284.9,3.42099]
[1736696615465,5.96566162,3285.2,3284.9,44.22099]
[1736696615866,3.97451999,3285.0,3284.9,44.22099]
[1736696616059,3.20011999,3285.0,3284.9,44.22099]
[1736696616266,7.15879394,3285.6,3285.0,0.21318]
[1736696616267,0.21315,3285.6,3285.0,0.21318]
[1736696616467,0.21314,3285.6,3285.5,2.32967476]
[1736696616765,0.21313,3285.8,3285.6,0.21314]
[1736696616966,0.21313,3285.8,3285.7,0.4861]
[1736696617671,3.92003,3285.9,3285.7,0.4861]
[1736696618174,3.7069,3285.9,3285.7,0.4861]
[1736696618373,3.2078,3285.9,3285.8,2.11652476]
[1736696620272,3.42092,3286.0,3285.8,2.11652476]
[1736696621473,3.2078,3286.0,3285.8,2.11652476]
[1736696621670,3.2078,3286.0,3285.9,0.21312]
[1736696622176,3.42092,3286.0,3285.8,2.32965476]
[1736696622379,3.6456764,3286.0,3285.8,2.32965476]
[1736696622674,3.4325564,3286.0,3285.8,2.32965476]
[1736696623273,3.4325564,3286.0,3285.8,2.11652476]
[1736696623475,3.4325564,3286.0,3285.9,0.21312]
[1736696624677,3.4325564,3286.0,3285.8,2.32964476]
[1736696625076,0.2247564,3286.0,3285.8,2.11652476]
[1736696625279,0.2247564,3286.0,3285.9,0.21312]
[1736696626570,0.2247564,3286.0,3285.9,1.15702]
[1736696628468,0.2247564,3286.0,3285.9,0.9439]
[1736696628874,0.2247564,3286.0,3285.9,1.15702]
[1736696630976,0.4378764,3286.0,3285.9,1.15702]
[1736696631278,0.2247564,3286.0,3285.9,1.15702]
[1736696632476,0.2247564,3286.0,3285.9,41.95702]
[1736696635474,0.2131,3286.2,3285.9,41.7439]
[1736696635672,0.2131,3286.2,3286.1,2.32963476]
[1736696637671,0.5036,3286.4,3285.9,40.8]
[1736696637874,3.6773,3286.1,3285.8,2.11652476]
[1736696638182,0.21312,3285.9,3285.8,2.11652476]
[1736696638372,0.21312,3285.9,3285.8,42.91652476]
[1736696638680,0.21312,3285.9,3285.8,40.8]
[1736696638872,0.21314,3285.7,3285.6,0.21314]
[1736696639073,0.5113,3285.8,3285.5,2.11652476]
[1736696639274,0.71834,3285.6,3285.5,2.32967476]
[1736696639473,0.5052,3285.6,3285.5,2.32967476]
[1736696639677,0.71834,3285.6,3285.5,2.32967476]
[1736696639881,1.20674,3285.6,3285.5,43.12967476]
[1736696640072,4.41454,3285.6,3285.5,40.8]
[1736696640270,4.41454,3285.6,3285.0,2.11652476]
[1736696640271,0.21317,3285.1,3285.0,2.11652476]
[1736696640776,0.21317,3285.1,3285.0,42.91652476]
[1736696641282,0.21319,3284.8,3284.7,2.11652476]
[1736696642175,0.21319,3284.8,3284.7,2.32972476]
[1736696642379,0.21319,3284.8,3284.7,2.11652476]
[1736696643584,0.21319,3284.8,3284.6,0.2132]
[1736696643585,0.9999,3285.1,3284.5,3.68599593]
[1736696643885,0.21321,3284.6,3284.5,3.68599593]
[1736696644779,0.21321,3284.6,3284.5,44.48599593]
[1736696645379,0.21322,3284.5,3284.2,0.21323]
[1736696645580,0.70112,3284.5,3284.2,0.21323]
[1736696645788,0.70112,3284.5,3284.4,2.11652476]
[1736696646883,0.4879,3284.5,3284.4,2.11652476]
[1736696647086,0.4925,3284.7,3284.4,2.11652476]
[1736696647288,0.4925,3284.7,3284.5,0.21321]
[1736696647586,0.7057,3284.7,3284.5,0.21321]
[1736696649182,0.4925,3284.7,3284.4,2.11652476]
[1736696649386,0.21322,3284.4,3284.3,40.8]
[1736696650487,0.21323,3284.3,3284.1,2.32976476]
[1736696650681,0.67993,3284.3,3284.1,2.32976476]
[1736696650881,0.4667,3284.3,3284.2,41.01323]
[1736696652992,0.67993,3284.3,3284.2,41.01323]
[1736696653177,0.67993,3284.3,3284.2,40.8]
[1736696653989,1.16463,3284.3,3284.2,40.8]
[1736696654489,0.9514,3284.3,3284.1,2.11652476]
[1736696654686,0.21323,3284.2,3284.1,2.11652476]
[1736696655082,0.21323,3284.2,3284.1,42.91652476]
[1736696655687,0.21323,3284.2,3284.1,40.8]
[1736696656293,0.21323,3284.2,3284.1,41.01324]
[1736696656484,0.21323,3284.2,3284.1,40.8]
[1736696657490,0.21325,3283.9,3283.8,2.11652476]
[1736696657889,0.21325,3283.9,3283.8,42.91652476]
[1736696658492,0.21325,3283.9,3283.8,2.11652476]
[1736696658996,0.21325,3283.9,3283.8,43.12978476]
[1736696659590,0.21325,3283.9,3283.8,40.8]
[1736696660095,0.4924,3284.1,3283.5,2.61122476]
[1736696660388,0.21327,3283.7,3283.6,40.8]
[1736696660786,0.21327,3283.7,3283.6,41.01327]
[1736696660992,0.70466,3283.8,3283.6,41.01327]
[1736696661497,0.21327,3283.7,3283.6,41.01327]
[1736696661694,0.4914,3283.8,3283.7,0.21327]
[1736696661888,0.4924,3284.1,3283.8,0.21325]
[1736696662091,0.21325,3283.9,3283.8,2.11652476]
[1736696662599,0.21325,3283.9,3283.8,2.32978476]
[1736696663103,0.21325,3283.9,3283.8,2.11652476]
[1736696664196,0.21325,3283.9,3283.8,2.32978476]
[1736696664899,0.21325,3283.9,3283.8,43.12978476]
[1736696665396,3.6925,3284.3,3283.8,42.91652476]
[1736696665397,3.2078,3284.3,3283.8,42.91652476]
[1736696665594,0.21323,3284.3,3284.2,0.21323]
[1736696665797,0.21323,3284.3,3284.1,2.32976476]
[1736696666097,0.68812,3284.5,3284.3,0.21322]
[1736696666601,0.4749,3284.5,3284.3,0.21322]
[1736696666791,0.44258855,3284.4,3284.3,0.21322]
[1736696667193,0.44258855,3284.4,3284.2,0.4938]
[1736696667498,0.44258855,3284.4,3284.2,0.70703]
[1736696667695,3.2078,3285.1,3284.2,1.02688]
[1736696667896,3.42097,3285.1,3285.0,2.11652476]
[1736696668096,3.2078,3285.1,3285.0,2.32970476]
[1736696668598,0.5083,3285.2,3285.1,0.21317]
[1736696668900,0.68985,3285.5,3285.3,0.21316]
[1736696669097,0.5083,3285.5,3285.4,0.21316]
[1736696669302,0.5083,3285.9,3285.3,2.11652476]
[1736696669494,0.21313,3285.8,3285.6,2.32966476]
[1736696669696,0.72142,3285.9,3285.6,2.32966476]
[1736696670388,0.5083,3285.9,3285.6,2.11652476]
[1736696670592,0.5083,3285.9,3285.7,0.21313]
[1736696671405,0.2266935,3286.1,3285.6,5.32432476]
[1736696671602,0.2266935,3286.1,3286.0,2.32964476]
[1736696671797,0.2266935,3286.1,3286.0,2.11652476]
[1736696672500,0.4398035,3286.1,3286.0,2.11652476]
[1736696672899,0.2266935,3286.1,3286.0,2.11652476]
[1736696673302,0.2266935,3286.1,3286.0,2.32964476]
[1736696673497,0.2266935,3286.1,3286.0,2.11652476]
[1736696673903,0.2266935,3286.1,3286.0,2.32964476]
[1736696674201,0.2266935,3286.1,3286.0,2.11652476]
[1736696674600,0.2266935,3286.1,3286.0,2.32964476]
[1736696680209,0.2266935,3286.1,3286.0,0.21312]
[1736696680504,0.21312,3286.1,3285.6,3.2078]
[1736696680704,0.21312,3286.1,3285.8,0.21312]
[1736696681900,0.21311,3286.1,3285.9,0.21312]
[1736696682099,3.7026,3286.4,3285.9,0.21312]
[1736696682306,0.2131,3286.3,3286.0,0.21311]
[1736696682907,0.21311,3286.2,3286.0,0.21311]
[1736696683408,3.7026,3286.4,3285.8,2.11652476]
[1736696683608,0.4722,3286.1,3285.6,3.2078]
[1736696683805,0.21312,3286.0,3285.8,0.21312]
[1736696684509,0.68531,3286.1,3285.9,0.21312]
[1736696684806,0.21312,3286.0,3285.8,0.21312]
[1736696684999,0.21313,3285.9,3285.7,0.21313]
[1736696686110,0.4722,3286.1,3285.6,3.2078]
[1736696686410,0.21313,3285.8,3285.6,3.42094]
[1736696686609,0.5109,3285.7,3285.6,3.42094]
[1736696688299,0.72404,3285.7,3285.6,3.2078]
[1736696688509,0.21316,3285.4,3285.2,0.21316]
[1736696688703,3.2078,3285.4,3284.9,2.11652476]
[1736696688913,0.21316,3285.3,3285.1,0.21317]
[1736696689711,3.42096,3285.4,3285.1,0.21317]
[1736696690302,0.21316,3285.3,3285.1,0.21317]
[1736696690509,0.70866,3285.3,3285.1,0.21317]
[1736696690904,0.4955,3285.3,3285.1,0.21317]
[1736696691410,0.70866,3285.3,3285.1,0.21317]
[1736696691906,0.4955,3285.3,3285.0,40.8]
[1736696692114,0.4955,3285.3,3285.1,0.21317]
[1736696692712,0.70866,3285.3,3285.1,0.21317]
[1736696695713,0.70866,3285.3,3285.2,0.21317]
[1736696696010,0.93786913,3285.3,3285.2,0.21317]
[1736696697311,0.72470913,3285.3,3285.2,0.21317]
[1736696699710,0.93786913,3285.3,3285.1,0.21317]
[1736696700211,0.93786913,3285.3,3285.2,0.21317]
[1736696700413,0.72470913,3285.3,3285.2,0.21317]
[1736696701214,0.21317,3285.2,3285.0,41.01318]
[1736696701520,0.93786913,3285.3,3285.1,0.21317]
[1736696702520,0.21317,3285.2,3285.1,0.21317]
[1736696702716,0.22920913,3285.3,3285.2,0.21317]
[1736696704024,0.44236913,3285.3,3285.0,40.8]
[1736696704213,0.44236913,3285.3,3285.2,0.21317]
[1736696706019,0.22920913,3285.3,3285.2,5.53749476]
[1736696706823,0.22920913,3285.3,3285.2,41.01317]
[1736696707023,0.22920913,3285.3,3285.2,0.21317]
[1736696707524,0.22920913,3285.3,3285.2,41.01317]
[1736696707715,0.22920913,3285.3,3285.2,0.21317]
[1736696708322,0.22920913,3285.3,3285.0,40.8]
[1736696708514,0.22920913,3285.3,3284.9,2.11652476]
[1736696708515,0.21317,3285.2,3284.9,2.11652476]
[1736696708711,0.21317,3285.2,3285.1,0.21317]
[1736696708912,0.44236913,3285.3,3285.1,0.21317]
[1736696709519,0.44237913,3285.3,3285.1,0.21317]
[1736696710526,0.21317,3285.3,3285.1,0.21317]
[1736696710919,0.44496266,3285.3,3285.1,0.21317]
[1736696711121,0.44496266,3285.3,3284.9,40.8]
[1736696711335,0.23179266,3285.3,3285.2,0.21317]
[1736696712419,0.44496266,3285.3,3285.1,0.21317]
[1736696713032,0.23179266,3285.3,3285.1,0.21317]
[1736696713223,0.44496266,3285.3,3284.9,42.91652476]
[1736696713527,0.44496266,3285.3,3285.2,0.21317]
[1736696714729,0.21317,3285.2,3285.0,0.21318]
[1736696714927,0.23179266,3285.3,3284.9,2.11652476]
[1736696715221,0.44496266,3285.3,3285.1,0.21317]
[1736696716528,0.23179266,3285.3,3285.1,0.21317]
[1736696716830,0.21317,3285.2,3285.1,0.21317]
[1736696718333,0.44496266,3285.3,3285.1,0.21317]
[1736696719130,0.21317,3285.2,3285.0,0.21317]
[1736696719831,0.21317,3285.1,3284.9,2.11652476]
[1736696720227,0.21317,3285.1,3284.9,2.32970476]
[1736696720535,0.23179266,3285.3,3284.9,2.11652476]
[1736696720731,0.21317,3285.2,3285.0,0.21318]
[1736696721533,0.23179266,3285.3,3284.9,2.11652476]
[1736696721726,0.21318,3285.1,3284.9,2.32970476]
[1736696721932,0.21317,3285.2,3285.0,0.21318]
[1736696726437,4.76860106,3285.3,3285.0,0.21318]
[1736696726637,0.21317,3285.1,3285.0,0.21318]
[1736696726838,0.21317,3285.1,3284.9,2.32971476]
[1736696728139,4.76860106,3285.2,3284.9,2.32971476]
[1736696728337,0.21317,3285.1,3284.9,2.32970476]
[1736696728536,0.21317,3285.1,3285.0,0.21318]
[1736696728840,0.44395539,3285.1,3284.9,2.11652476]
[1736696729138,0.44395539,3285.1,3284.9,2.32970476]
[1736696729638,0.44395539,3285.1,3284.9,2.11652476]
[1736696729935,0.44395539,3285.1,3285.0,0.21318]
[1736696730238,0.23078539,3285.1,3284.9,2.11652476]
[1736696730440,0.44396539,3285.1,3284.9,2.32971476]
[1736696731038,0.44396539,3285.1,3285.0,0.21318]
[1736696731730,5.21256645,3285.1,3285.0,0.21318]
[1736696731934,5.21256645,3285.1,3284.9,2.32970476]
[1736696732936,4.99938645,3285.1,3285.0,0.21318]
[1736696733139,1.48410106,3285.1,3285.0,3.42098]
[1736696733340,4.25077517,3285.3,3285.2,0.21317]
[1736696733635,4.25077517,3285.3,3285.2,1.45117]
[1736696733850,3.2078,3285.9,3285.2,42.25116]
[1736696734033,3.2078,3285.5,3285.0,15.1121159]
[1736696734339,3.42097,3285.1,3285.0,12.99559114]
[1736696734841,3.42097,3285.1,3284.8,4.7499074]
[1736696734842,0.21319,3284.9,3284.8,4.7499074]
[1736696735837,5.32432476,3285.1,3284.3,0.21322]
[1736696736034,0.21322,3284.5,3284.2,4.9631374]
[1736696736834,0.21321,3284.6,3284.3,0.21322]
[1736696737042,0.21321,3284.6,3284.4,0.21322]
[1736696737430,1.5389,3284.8,3284.3,0.21322]
[1736696737635,0.21321,3284.6,3284.3,0.21322]
[1736696738139,0.21321,3284.5,3284.3,0.21322]
[1736696738339,0.21321,3284.6,3284.4,0.21322]
[1736696739243,0.21321,3284.5,3284.4,0.21322]
[1736696740544,0.20560081,3284.5,3284.4,0.21322]
[1736696740744,1.5389,3284.8,3284.2,4.7499074]
[1736696740939,0.21323,3284.3,3284.2,4.9631374]
[1736696741141,0.21323,3284.3,3284.2,4.7499074]
[1736696742148,0.21323,3284.4,3284.2,0.21323]
[1736696742341,0.21323,3284.3,3284.2,0.21323]
[1736696742541,0.69713,3284.3,3284.2,0.21323]
[1736696744247,0.69713,3284.3,3284.1,9.01043879]
[1736696744445,0.5099,3284.2,3284.1,9.22366879]
[1736696746042,0.5099,3284.2,3284.1,3.42103]
[1736696746245,0.21325,3283.9,3283.8,4.7499074]
[1736696747049,0.21325,3283.9,3283.7,0.21326]
[1736696747241,0.4907,3283.8,3283.7,0.21326]
[1736696747749,0.70396,3283.8,3283.6,0.21327]
[1736696749041,0.70396,3283.8,3283.7,0.21327]
[1736696749447,0.4907,3283.8,3283.7,0.21327]
[1736696752949,4.2239,3284.2,3283.6,0.5088]
[1736696753141,0.21325,3284.0,3283.9,0.21325]
[1736696753343,0.21326,3283.8,3283.7,0.21327]
[1736696753738,0.21327,3283.7,3283.6,0.21327]
[1736696753938,0.4727,3284.1,3283.5,42.91652476]
[1736696754147,0.71627,3283.6,3283.5,41.01327]
[1736696754554,0.503,3283.6,3283.5,41.01327]
[1736696755053,1.67177,3283.6,3283.5,41.01327]
[1736696755651,1.4585,3283.6,3283.5,41.01327]
[1736696756150,0.9757,3283.6,3283.5,41.01327]
[1736696756653,1.18897,3283.6,3283.5,41.01327]
[1736696756842,1.18897,3283.6,3283.5,0.21327]
[1736696757446,0.9757,3283.6,3283.5,0.21327]
[1736696757752,0.503,3283.6,3283.5,2.32979476]
[1736696758555,0.503,3283.6,3283.5,43.12979476]
[1736696759352,0.23289809,3283.7,3283.5,42.91652476]
[1736696759553,0.23289809,3283.7,3283.6,0.21327]
[1736696760243,0.23289809,3283.7,3283.6,41.01327]
[1736696761048,9.18176312,3284.8,3283.9,0.53314]
[1736696761262,0.5157,3284.5,3284.4,0.21322]
[1736696762053,0.5207,3284.7,3284.4,2.11652476]
[1736696762252,5.97396312,3284.8,3284.6,3.2078]
[1736696762557,0.5193,3285.0,3284.9,0.21319]
[1736696762755,0.73248,3285.0,3284.7,2.62122476]
[1736696762956,0.5193,3285.0,3284.8,0.21319]
[1736696763153,0.5193,3285.0,3284.9,0.21319]
[1736696763456,0.73248,3285.0,3284.8,0.21319]
[1736696763655,0.5193,3285.0,3284.7,2.11652476]
[1736696763862,0.5193,3285.0,3284.6,3.2078]
[1736696764063,0.2132,3284.8,3284.6,3.2078]
[1736696764559,0.21322,3284.4,3284.2,3.42103]
[1736696764762,0.4967,3284.3,3284.2,0.21323]
[1736696764954,0.4967,3284.3,3284.1,2.11652476]
[1736696765251,0.4967,3284.3,3284.2,0.21323]
[1736696765958,0.4967,3284.3,3283.9,0.21325]
[1736696765959,0.21324,3284.1,3283.9,0.21325]
[1736696766159,0.21324,3284.2,3284.0,0.21324]
[1736696766554,0.21324,3284.1,3284.0,0.21324]
[1736696767161,0.21323,3284.2,3283.8,5.53758476]
[1736696767358,0.4967,3284.3,3283.8,3.2078]
[1736696767554,0.21325,3283.9,3283.8,3.2078]
[1736696768062,3.2078,3284.2,3283.5,42.91652476]
[1736696768260,3.2078,3284.2,3283.5,43.12980476]
[1736696768459,3.2078,3284.2,3283.5,42.91652476]
[1736696768654,0.21327,3283.6,3283.5,42.91652476]
[1736696768861,0.53311,3284.1,3283.5,43.12979476]
[1736696768862,0.21327,3283.7,3283.5,43.12979476]
[1736696769059,0.4974,3283.6,3283.5,43.12979476]
[1736696773654,0.4974,3283.6,3283.5,40.8]
[1736696773855,0.71067,3283.6,3283.5,41.01328]
[1736696774066,0.4974,3283.6,3283.5,41.01328]
[1736696774663,0.4974,3283.6,3283.5,43.12980476]
[1736696775352,3.2078,3284.2,3283.5,42.91652476]
[1736696775558,0.4754,3284.4,3284.1,5.32432476]
[1736696775760,0.4754,3284.4,3284.2,0.21323]
[1736696776059,0.21323,3284.3,3284.2,0.21323]
[1736696776458,0.68862,3284.4,3284.2,0.21323]
[1736696776757,0.68862,3284.4,3284.2,41.01323]
[1736696777459,0.68862,3284.4,3284.2,0.21323]
[1736696777664,0.68862,3284.4,3284.3,0.21323]
[1736696777665,0.4754,3284.4,3284.3,0.21323]
[1736696778062,3.2078,3284.8,3284.1,46.12432476]
[1736696778262,5.97396312,3284.9,3284.6,0.2132]
[1736696778263,0.4738,3284.7,3284.6,0.2132]
[1736696778459,5.97396312,3284.9,3284.8,0.21319]
[1736696778966,0.4738,3285.2,3284.6,2.62002476]
[1736696779267,0.4738,3285.2,3285.1,0.21317]
[1736696779767,0.4738,3285.2,3284.9,3.2078]
[1736696779961,0.68697,3285.2,3285.0,0.21318]
[1736696780670,0.21318,3285.1,3284.9,3.42098]
[1736696780860,0.21318,3285.0,3284.9,3.2078]
[1736696781365,0.21318,3285.1,3284.9,3.42099]
[1736696781966,0.4738,3285.2,3284.9,3.2078]
[1736696782164,0.68697,3285.2,3284.9,3.42098]
[1736696782366,0.4738,3285.2,3284.9,3.2078]
[1736696782573,0.4738,3285.2,3285.1,0.21317]
[1736696783164,5.97396312,3285.7,3285.0,2.11652476]
[1736696783471,5.97396312,3285.7,3285.6,2.32966476]
[1736696783766,0.4731,3286.0,3285.6,2.32966476]
[1736696783767,5.97396312,3285.8,3285.6,2.32966476]
[1736696784157,5.97396312,3285.8,3285.6,0.21314]
[1736696784358,5.97396312,3285.8,3285.5,40.8]
[1736696784564,5.97396312,3285.8,3285.7,0.21314]
[1736696784871,0.21312,3285.9,3285.7,0.21314]
[1736696785070,0.21312,3285.9,3285.6,0.21314]
[1736696785267,0.4731,3286.0,3285.5,40.8]
[1736696785568,0.21315,3285.5,3285.3,0.21316]
[1736696785764,0.21315,3285.5,3285.2,0.21316]
[1736696785765,0.9876,3285.4,3285.2,0.21316]
[1736696786862,1.20076,3285.4,3285.2,0.21316]
[1736696789858,0.9876,3285.4,3285.0,5.32432476]
[1736696790171,0.21317,3285.1,3285.0,3.2078]
[1736696790369,0.21317,3285.2,3285.0,3.42098]
[1736696790670,0.21317,3285.2,3285.1,0.21317]
[1736696790871,0.21317,3285.2,3285.0,3.2078]
[1736696791059,0.21317,3285.2,3285.0,3.42098]
[1736696791260,0.4902,3285.3,3285.0,3.42098]
[1736696791461,0.9876,3285.4,3285.0,5.32432476]
[1736696791667,0.21317,3285.2,3285.0,5.53750476]
[1736696793664,0.21317,3285.2,3285.0,5.32432476]
[1736696793873,0.21317,3285.2,3285.0,5.53750476]
[1736696794270,0.21316,3285.3,3285.1,0.21317]
[1736696795172,0.21316,3285.3,3285.0,5.53750476]
[1736696795968,0.21316,3285.3,3285.0,2.32970476]
[1736696796167,0.21317,3285.2,3285.0,2.32970476]
[1736696796363,0.21317,3285.2,3285.1,40.8]
[1736696797170,0.21318,3285.1,3284.9,0.21319]
[1736696797576,0.21318,3285.1,3284.9,41.01319]
[1736696798372,0.21317,3285.2,3285.0,0.21318]
[1736696798564,0.21318,3285.1,3284.9,0.21318]
[1736696799278,0.9876,3285.4,3284.8,3.42099]
[1736696799475,0.21318,3285.0,3284.8,3.2078]
[1736696799675,0.4794,3284.9,3284.8,3.42099]
[1736696801977,0.21317,3285.1,3285.0,0.21318]
[1736696802675,0.21317,3285.2,3285.1,0.21317]
[1736696804679,0.4765,3285.3,3285.0,2.11652476]
[1736696804975,0.4765,3285.3,3285.2,0.21317]
[1736696805883,0.4765,3285.3,3285.2,3.42097]
[1736696806887,0.68966,3285.3,3285.2,3.42097]
[1736696807274,0.4765,3285.3,3285.2,3.42097]
[1736696808084,0.4765,3285.3,3285.2,3.2078]
[1736696808384,0.68967,3285.3,3285.1,0.21317]
[1736696809081,0.21318,3285.1,3285.0,0.21318]
[1736696809270,0.21319,3285.0,3284.9,0.21319]
[1736696809475,0.21319,3284.9,3284.8,3.2078]
[1736696810880,0.21319,3284.9,3284.8,3.42099]
[1736696811383,0.21319,3284.9,3284.8,3.2078]
[1736696812789,0.4684,3285.1,3284.5,40.8]
[1736696812970,1.2038,3284.8,3284.6,0.2132]
[1736696813376,0.9906,3284.8,3284.5,40.8]
[1736696813579,0.21321,3284.6,3284.4,5.53754476]
[1736696813785,0.9906,3284.8,3284.4,5.32432476]
[1736696813976,0.9906,3284.8,3284.4,5.53754476]
[1736696814176,0.21321,3284.5,3284.4,5.53754476]
[1736696814983,0.21321,3284.6,3284.5,0.21321]
[1736696815482,0.9906,3284.8,3284.7,0.2132]
[1736696815682,3.43946658,3285.2,3284.7,2.11652476]
[1736696815881,3.65263658,3285.2,3285.1,0.21317]
[1736696816084,3.65263658,3285.2,3285.1,41.01317]
[1736696816290,3.43946658,3285.2,3285.1,41.01317]
[1736696816583,3.65263658,3285.2,3285.1,41.01317]
[1736696816890,3.65263658,3285.2,3285.1,40.8]
[1736696817186,3.43946658,3285.2,3285.1,0.21317]
[1736696817386,3.43946658,3285.2,3284.7,2.11652476]
[1736696817587,0.21318,3285.1,3284.8,40.8]
[1736696817779,0.21318,3285.1,3285.0,0.21318]
[1736696817984,3.43946658,3285.2,3284.8,40.8]
[1736696818291,3.43946658,3285.2,3285.1,0.21317]
[1736696818480,3.65263658,3285.2,3285.1,0.21317]
[1736696819591,3.43946658,3285.2,3285.1,0.21317]
[1736696820291,3.65263658,3285.2,3285.0,0.21318]
[1736696820501,3.65263658,3285.2,3285.1,0.21317]
[1736696821691,3.65263658,3285.2,3285.0,0.21318]
[1736696822493,0.44483658,3285.2,3285.0,0.21318]
[1736696822692,3.65263658,3285.2,3285.0,0.21318]
[1736696823390,0.21317,3285.1,3285.0,0.21318]
[1736696823789,3.43946658,3285.2,3285.1,0.21317]
[1736696824098,0.23166658,3285.2,3285.1,3.91007]
[1736696824589,0.23166658,3285.2,3285.1,4.06997]
[1736696824989,0.44483658,3285.2,3285.1,3.6969]
[1736696825290,0.23166658,3285.2,3285.0,2.11652476]
[1736696825498,0.21321,3284.5,3284.4,6.86643216]
[1736696825693,0.21321,3284.5,3284.4,4.7499074]
[1736696826088,0.21321,3284.5,3284.4,11.82022977]
[1736696826990,4.6646,3285.1,3284.5,0.21321]
[1736696827300,4.87778,3285.1,3284.8,0.21319]
[1736696827795,4.1982,3285.1,3285.0,0.21318]
[1736696828099,0.21318,3285.0,3284.8,0.21319]
[1736696828797,4.1982,3285.1,3284.8,0.21319]
[1736696829096,1.20358,3285.1,3284.8,0.21319]
[1736696829298,1.43572747,3285.1,3284.8,0.21319]
[1736696829689,1.22254747,3285.1,3285.0,0.21318]
[1736696829990,1.22254747,3285.1,3284.7,2.11652476]
[1736696830184,1.22254747,3285.1,3284.8,0.21319]
[1736696830389,1.43572747,3285.1,3284.9,0.21318]
[1736696831192,0.21318,3285.0,3284.8,0.21319]
[1736696832296,0.21318,3285.0,3284.7,6.87014331]
[1736696832601,1.22254747,3285.1,3285.0,0.21318]
[1736696833001,1.22254747,3285.1,3285.0,41.01318]
[1736696833801,1.43571747,3285.1,3285.0,41.01318]
[1736696834397,1.22254747,3285.1,3285.0,41.01318]
[1736696840606,9.19236438,3285.6,3285.0,42.91652476]
[1736696840904,9.87990438,3285.6,3285.0,43.36182476]
[1736696841299,0.21315,3285.5,3285.0,48.11544331]
[1736696841507,0.21315,3285.5,3285.3,0.21316]
[1736696841704,3.6822,3285.6,3285.0,7.31544331]
[1736696842010,0.21316,3285.4,3285.3,0.21316]
[1736696842213,0.21315,3285.5,3285.4,0.21315]
[1736696844416,3.6822,3285.6,3285.3,0.21316]
[1736696844609,0.21315,3285.5,3285.4,0.21316]
[1736696845412,3.6822,3285.6,3285.1,40.8]